fUSD/lending_fUSD_20240117
["ID","MTS","AMOUNT","RATE_DAILY","PERIOD"]
[311981384,1705528249771,-4040.2177478,0.000221,2]
[311981385,1705528249782,-1104.86730331,0.000221,2]
[311981386,1705528249793,-3164.89365307,0.00022125,2]
[311981387,1705528249802,-153.45,0.00022128,2]
[311981388,1705528249812,-2000.0,0.00022136,2]
[311981389,1705528249821,-200.0,0.00022136,2]
[311981390,1705528249830,-881.98475148,0.00022136,2]
[311981391,1705528249840,-301.240424,0.00022139,7]
[311981392,1705528249850,-1000.0,0.00022139,2]
[311981393,1705528249860,-4655.78840288,0.00022163,2]
[311981394,1705528249870,-401.46,0.00022179,2]
[311981395,1705528249881,-401.61,0.00022179,2]
[311981396,1705528249891,-401.61,0.00022179,2]
[311981397,1705528249903,-401.61,0.00022179,2]
[311981398,1705528249913,-903.29186323,0.00022187,2]
[311981399,1705528249925,-1739.38875513,0.00022187,2]
[311981400,1705528249936,-113522.095456,0.00022189,2]
[311981401,1705528249947,-198.6778953,0.00022189,2]
[311981402,1705528249959,-914.08361235,0.00022189,2]
[311981403,1705528249970,-155.28747022,0.00022189,2]
[311981404,1705528249982,-155.0,0.00022189,2]
[311981405,1705528249993,-215.73359013,0.00022189,2]
[311981406,1705528250005,-184.02329883,0.0002219,2]
[311981407,1705528250015,-246.71680154,0.0002219,2]
[311981408,1705528250025,-500.0,0.0002219,2]
[311981409,1705528250034,-500.0,0.0002219,2]
[311981410,1705528250043,-500.0,0.0002219,2]
[311981411,1705528250053,-420.6,0.0002219,2]
[311981412,1705528250062,-500.0,0.0002219,2]
[311981413,1705528250071,-500.0,0.0002219,2]
[311981414,1705528250080,-500.0,0.0002219,2]
[311981415,1705528250090,-500.0,0.0002219,2]
[311981416,1705528250100,-387.39158489,0.0002219,2]
[311981417,1705528250109,-6837.09,0.0002219,2]
[311981418,1705528250120,-7110.5,0.0002219,2]
[311981419,1705528250129,-612030.47227139,0.00022191,3]
[311981420,1705528250527,-825.57805478,0.00022191,3]
[311981421,1705528250540,-561.2699,0.00022191,3]
[311981422,1705528250553,-333.4011,0.00022191,3]
[311981423,1705528250582,-1429.80016735,0.00022191,3]
[311981424,1705528250968,1000.0,0.00014567,2]
[311981426,1705528251685,-233.82,0.00021917,2]
[311981427,1705528251695,-500.0,0.00021917,2]
[311981428,1705528251704,-500.0,0.00021917,2]
[311981429,1705528251714,-500.0,0.00021917,2]
[311981430,1705528251723,-500.0,0.00021917,2]
[311981431,1705528251732,-500.0,0.00021917,2]
[311981432,1705528251742,-45042.81291992,0.00022191,3]
[311981433,1705528251769,-3567.06786537,0.00022191,3]
[311981434,1705528252117,-704.66017743,0.00021817,2]
[311981435,1705528252128,-500.0,0.00021917,2]
[311981436,1705528252137,-501.15592614,0.00021917,2]
[311981437,1705528252146,-249.55598313,0.00021917,2]
[311981438,1705528252155,-52.54741425,0.00021917,2]
[311981439,1705528252169,-447.45258575,0.00021917,2]
[311981440,1705528252180,-13252.97645321,0.00022191,3]
[311981441,1705528252193,-349.52660475,0.00022191,3]
[311981442,1705528252205,-23825.95453527,0.00022191,3]
[311981443,1705528252218,-884.57282385,0.00022191,3]
[311981444,1705528252232,-592.826,0.00022191,3]
[311981445,1705528252243,-6468.90009846,0.00022191,3]
[311981446,1705528252255,-421.842,0.00022191,3]
[311981447,1705528252266,-4587.7,0.00022191,3]
[311981448,1705528252281,-457.16083985,0.00022191,3]
[311981453,1705528273916,1000.0,0.00014567,2]
[311981460,1705528358420,1000.0,0.00014421,2]
[311981461,1705528374431,1000.0,0.00014421,2]
[311981463,1705528390421,1000.0,0.00014277,2]
[311981464,1705528401702,4387.40271906,0.00014421,2]
[311981465,1705528403343,4040.2177478,0.00014421,2]
[311981466,1705528403804,282.90032781,0.00014421,2]
[311981467,1705528406212,1897.75273507,0.00014421,2]
[311981468,1705528414418,1000.0,0.00014277,2]
[311981470,1705528432423,1000.0,0.00014277,2]
[311981471,1705528452431,1000.0,0.00014134,2]
[311981476,1705528470422,1000.0,0.00014134,2]
[311981477,1705528486423,1000.0,0.00014134,2]
[311981478,1705528489953,5189.33993553,0.00014277,2]
[311981479,1705528508446,1000.0,0.00014134,2]
[311981480,1705528509928,3081.14286366,0.00014277,2]
[311981481,1705528524457,1000.0,0.00014134,2]
[311981482,1705528546446,1000.0,0.00014134,2]
[311981483,1705528564449,1000.0,0.00013993,2]
[311981484,1705528582449,1000.0,0.00013993,2]
[311981485,1705528602452,1000.0,0.00013993,2]
[311981486,1705528618450,1000.0,0.00013993,2]
[311981487,1705528638452,1000.0,0.00013853,2]
[311981489,1705528664499,1000.0,0.00013714,2]
[311981490,1705528682473,1000.0,0.00013714,2]
[311981491,1705528700494,1000.0,0.00013714,2]
[311981494,1705528718465,1000.0,0.00013714,2]
[311981495,1705528736470,1000.0,0.00013577,2]
[311981496,1705528752478,1000.0,0.00013577,2]
[311981497,1705528776477,1000.0,0.00013577,2]
[311981498,1705528798473,1000.0,0.00013441,2]
[311981499,1705528816495,1000.0,0.00013441,2]
[311981500,1705528842599,1000.0,0.00013307,2]
[311981501,1705528864479,1000.0,0.00013307,2]
[311981502,1705528880795,1000.0,0.00013174,2]
[311981503,1705528898476,1000.0,0.00013174,2]
[311981504,1705528916505,1000.0,0.00013174,2]
[311981505,1705528932489,1000.0,0.00013174,2]
[311981506,1705528952488,1000.0,0.00013042,2]
[311981509,1705528970492,1000.0,0.00013042,2]
[311981510,1705528972312,575.69,0.00018358,2]
[311981511,1705528992487,1000.0,0.00013042,2]
[311981513,1705529010488,1000.0,0.00018174,2]
[311981515,1705529028531,1000.0,0.00018174,2]
[311981516,1705529048513,1000.0,0.00018174,2]
[311981517,1705529066501,1000.0,0.00017992,2]
[311981518,1705529084508,1000.0,0.00017992,2]
[311981519,1705529106500,1000.0,0.00017992,2]
[311981521,1705529425010,579.66,0.00018226,2]
[311981559,1705529431847,-260.15368191,0.00019998,2]
[311981561,1705529431857,-458.93953423,0.00019999,2]
[311981563,1705529431866,-1526.81140038,0.0002,2]
[311981565,1705529431876,-1104.86730331,0.0002,2]
[311981567,1705529431885,-711.42,0.0002,2]
[311981568,1705529431894,-718.42,0.0002,2]
[311981569,1705529431903,-1373.81,0.00020169,2]
[311981570,1705529431912,-204.0,0.00020222,2]
[311981572,1705529431921,-154.59,0.00020247,10]
[311981574,1705529431931,-446.12,0.00020247,2]
[311981576,1705529431941,-150.0,0.00020254,2]
[311981578,1705529431951,-280.14,0.00020257,2]
[311981580,1705529431963,-298.44,0.00020257,2]
[311981582,1705529431973,-600.0,0.00020258,2]
[311981584,1705529431983,-500.0,0.00020269,2]
[311981586,1705529431992,-287.28,0.00020275,2]
[311981588,1705529432002,-1423.77,0.00020275,2]
[311981590,1705529432012,-221.02,0.00020275,3]
[311981592,1705529432021,-162.46,0.00020362,2]
[311981594,1705529432033,-155.26,0.00020375,2]
[311981608,1705529432264,-160.96,0.00020405,2]
[311981610,1705529432275,-400.0,0.00020452,2]
[311981612,1705529432286,-153.8,0.00020479,2]
[311981613,1705529432296,-579.66,0.00020489,2]
[311981615,1705529432305,-2000.0,0.00020548,2]
[311981617,1705529432316,-155.26,0.00020629,2]
[311981619,1705529432327,-738.54219566,0.000208,2]
[311981621,1705529432337,-499.99,0.0002088,2]
[311981622,1705529432347,-3624.2701,0.00020881,2]
[311981623,1705529432356,-3000.0,0.00020881,2]
[311981624,1705529432367,-611.5888,0.00020881,2]
[311981625,1705529432375,-155.26,0.00020884,2]
[311981626,1705529432385,-168.05,0.00020937,2]
[311981627,1705529432394,-1000.0,0.00020981,2]
[311981628,1705529432403,-100000.0,0.00020981,2]
[311981629,1705529432413,-155.26,0.00021139,2]
[311981630,1705529432424,-1373.81,0.00021147,2]
[311981631,1705529432434,-1880.43,0.0002123,2]
[311981632,1705529432444,-401.61,0.0002123,2]
[311981633,1705529432454,-153.8,0.0002125,2]
[311981634,1705529432463,-164.57,0.00021279,2]
[311981635,1705529432474,-155.26,0.00021393,2]
[311981636,1705529432483,-160.96,0.00021468,2]
[311981637,1705529432496,-381.0,0.00021481,2]
[311981638,1705529432506,-168.05,0.00021593,2]
[311981639,1705529432517,-1083.426,0.00021603,2]
[311981640,1705529432526,-294.119,0.00021603,2]
[311981641,1705529432536,-1884.741,0.00021603,2]
[311981642,1705529432545,-702.0,0.00021603,2]
[311981643,1705529432554,-1249.0,0.00021603,2]
[311981644,1705529432563,-214.0,0.00021603,2]
[311981645,1705529432572,-527.0,0.00021603,2]
[311981646,1705529432582,-1234.0,0.00021603,2]
[311981647,1705529432591,-741.751,0.00021603,2]
[311981648,1705529432600,-996.0,0.00021603,2]
[311981649,1705529432612,-1933.0,0.00021603,2]
[311981650,1705529432621,-425.0,0.00021603,2]
[311981651,1705529432632,-508.0,0.00021603,2]
[311981652,1705529432641,-877.0,0.00021603,2]
[311981653,1705529432651,-238.493,0.00021603,2]
[311981654,1705529432660,-322.552,0.00021603,2]
[311981655,1705529432671,-1139.0,0.00021603,2]
[311981656,1705529432680,-223.21,0.00021644,2]
[311981657,1705529432689,-155.26,0.00021648,2]
[311981658,1705529432698,-1495.13833716,0.00021762,2]
[311981659,1705529432707,-164.57,0.00021811,2]
[311981660,1705529432716,-8005.6872,0.00021817,2]
[311981661,1705529432725,-171.78762555,0.00021817,2]
[311981662,1705529432734,-2769.28194648,0.00021817,2]
[311981663,1705529432744,-155.26,0.00021903,2]
[311981664,1705529432753,-692.33625139,0.00021915,2]
[311981665,1705529432763,-386.76750307,0.00021915,2]
[311981666,1705529432773,-213.58643392,0.00021915,2]
[311981667,1705529432783,-1929.84803143,0.00021915,2]
[311981668,1705529432794,-159.75745364,0.00021915,2]
[311981669,1705529432804,-3209.77105628,0.00021915,5]
[311981670,1705529432813,-155.58466207,0.00021915,2]
[311981671,1705529432822,-1806.37813333,0.00021915,2]
[311981672,1705529432832,-386.80019708,0.00021915,2]
[311981673,1705529432842,-8519.24305335,0.00021915,2]
[311981674,1705529432852,-3473.29686981,0.00021915,2]
[311981675,1705529432861,-1349.42389442,0.00021915,2]
[311981676,1705529432871,-222.35781449,0.00021915,2]
[311981677,1705529432879,-475.10229422,0.00021915,2]
[311981678,1705529432889,-163.94799858,0.00021915,2]
[311981679,1705529432898,-364.63482408,0.00021916,2]
[311981680,1705529432907,-399.61313833,0.00021916,2]
[311981681,1705529432915,-24332.10257658,0.00021916,2]
[311981682,1705529432924,-150.0,0.00021916,2]
[311981683,1705529432933,-172.09729316,0.00021917,2]
[311981684,1705529432943,-500.0,0.00021917,2]
[311981685,1705529432954,-613.32129066,0.00021917,2]
[311981686,1705529432963,-500.0,0.00021917,2]
[311981687,1705529432972,-548.57,0.00021917,2]
[311981688,1705529432980,-500.0,0.00021917,2]
[311981689,1705529432990,-500.0,0.00021917,2]
[311981690,1705529432999,-203.60031223,0.00021917,2]
[311981691,1705529433008,-308.47,0.00021917,2]
[311981692,1705529433016,-500.0,0.00021917,2]
[311981693,1705529433025,-500.0,0.00021917,2]
[311981694,1705529433035,-500.0,0.00021917,2]
[311981695,1705529433044,-500.0,0.00021917,2]
[311981696,1705529433053,-500.0,0.00021917,2]
[311981697,1705529433063,-500.0,0.00021917,2]
[311981698,1705529433073,-500.0,0.00021917,2]
[311981699,1705529433082,-500.0,0.00021917,2]
[311981700,1705529433092,-500.0,0.00021917,2]
[311981701,1705529433102,-500.0,0.00021917,2]
[311981702,1705529433113,-500.0,0.00021917,2]
[311981703,1705529433123,-500.0,0.00021917,2]
[311981704,1705529433133,-503.14,0.00021917,2]
[311981705,1705529433143,-612.56,0.00021917,2]
[311981706,1705529433153,-500.0,0.00021917,2]
[311981707,1705529433163,-500.0,0.00021917,2]
[311981708,1705529433175,-500.0,0.00021917,2]
[311981709,1705529433185,-500.0,0.00021917,2]
[311981710,1705529433194,-500.0,0.00021917,2]
[311981711,1705529433204,-500.0,0.00021917,2]
[311981712,1705529433214,-500.0,0.00021917,2]
[311981713,1705529433224,-500.0,0.00021917,2]
[311981714,1705529433234,-500.0,0.00021917,2]
[311981715,1705529433244,-500.0,0.00021917,2]
[311981716,1705529433254,-500.0,0.00021917,2]
[311981717,1705529433264,-500.0,0.00021917,2]
[311981718,1705529433276,-500.0,0.00021917,2]
[311981719,1705529433285,-500.0,0.00021917,2]
[311981720,1705529433294,-504.97360692,0.00021917,2]
[311981721,1705529433307,-178.76,0.00021917,2]
[311981722,1705529433317,-500.0,0.00021917,2]
[311981723,1705529433327,-500.0,0.00021917,2]
[311981724,1705529433336,-500.0,0.00021917,2]
[311981725,1705529433346,-500.0,0.00021917,2]
[311981726,1705529433356,-500.0,0.00021917,2]
[311981727,1705529433366,-500.0,0.00021917,2]
[311981728,1705529433376,-500.0,0.00021917,2]
[311981729,1705529433386,-393.03046495,0.00021917,2]
[311981730,1705529433397,-500.0,0.00021917,2]
[311981731,1705529433407,-566.97,0.00021917,2]
[311981732,1705529433418,-500.0,0.00021917,2]
[311981733,1705529433427,-500.0,0.00021917,2]
[311981734,1705529433438,-500.0,0.00021917,2]
[311981735,1705529433447,-500.0,0.00021917,2]
[311981736,1705529433457,-500.0,0.00021917,2]
[311981737,1705529433466,-500.0,0.00021917,2]
[311981738,1705529433477,-500.0,0.00021917,2]
[311981739,1705529433485,-348.89123516,0.00021917,2]
[311981740,1705529433496,-500.0,0.00021917,2]
[311981741,1705529433506,-500.0,0.00021917,2]
[311981742,1705529433516,-500.0,0.00021917,2]
[311981743,1705529433525,-500.0,0.00021917,2]
[311981744,1705529433534,-500.0,0.00021917,2]
[311981745,1705529433544,-500.0,0.00021917,2]
[311981746,1705529433555,-506.98247384,0.00021917,2]
[311981747,1705529433565,-159.32962375,0.00021917,2]
[311981748,1705529433574,-500.0,0.00021917,2]
[311981749,1705529433583,-253.52,0.00021917,2]
[311981750,1705529433593,-456.86,0.00021917,2]
[311981751,1705529433602,-500.0,0.00021917,2]
[311981752,1705529433611,-500.0,0.00021917,2]
[311981753,1705529433620,-500.0,0.00021917,2]
[311981754,1705529433630,-500.0,0.00021917,2]
[311981755,1705529433639,-500.0,0.00021917,2]
[311981756,1705529433648,-500.0,0.00021917,2]
[311981757,1705529433657,-500.0,0.00021917,2]
[311981758,1705529433668,-500.0,0.00021917,2]
[311981759,1705529433678,-500.0,0.00021917,2]
[311981760,1705529433687,-500.0,0.00021917,2]
[311981761,1705529433696,-300.0,0.00021917,2]
[311981762,1705529433704,-500.0,0.00021917,2]
[311981763,1705529433713,-500.0,0.00021917,2]
[311981764,1705529433722,-500.0,0.00021917,2]
[311981765,1705529433733,-500.0,0.00021917,2]
[311981766,1705529433747,-500.0,0.00021917,2]
[311981767,1705529433757,-500.0,0.00021917,2]
[311981768,1705529433767,-500.0,0.00021917,2]
[311981769,1705529433777,-500.0,0.00021917,2]
[311981770,1705529433787,-500.0,0.00021917,2]
[311981771,1705529433797,-500.0,0.00021917,2]
[311981772,1705529433807,-500.0,0.00021917,2]
[311981773,1705529433816,-500.0,0.00021917,2]
[311981774,1705529433828,-500.0,0.00021917,2]
[311981775,1705529433839,-500.0,0.00021917,2]
[311981776,1705529433850,-500.0,0.00021917,2]
[311981777,1705529433860,-500.0,0.00021917,2]
[311981778,1705529433869,-543.24,0.00021917,2]
[311981779,1705529433881,-500.0,0.00021917,2]
[311981780,1705529433891,-500.0,0.00021917,2]
[311981781,1705529433902,-528.23947077,0.00021917,2]
[311981782,1705529433912,-500.0,0.00021917,2]
[311981783,1705529433923,-500.0,0.00021917,2]
[311981784,1705529433933,-500.0,0.00021917,2]
[311981785,1705529433944,-500.0,0.00021917,2]
[311981786,1705529433959,-500.0,0.00021917,2]
[311981787,1705529433968,-261.11,0.00021917,2]
[311981788,1705529433978,-500.0,0.00021917,2]
[311981789,1705529433988,-500.0,0.00021917,2]
[311981790,1705529433999,-500.0,0.00021917,2]
[311981791,1705529434008,-500.0,0.00021917,2]
[311981792,1705529434017,-500.0,0.00021917,2]
[311981793,1705529434028,-500.0,0.00021917,2]
[311981794,1705529434038,-500.0,0.00021917,2]
[311981795,1705529434049,-500.0,0.00021917,2]
[311981796,1705529434059,-500.0,0.00021917,2]
[311981797,1705529434072,-500.0,0.00021917,2]
[311981798,1705529434082,-500.0,0.00021917,2]
[311981799,1705529434091,-500.0,0.00021917,2]
[311981800,1705529434100,-500.0,0.00021917,2]
[311981801,1705529434109,-500.0,0.00021917,2]
[311981802,1705529434119,-500.0,0.00021917,2]
[311981803,1705529434128,-500.0,0.00021917,2]
[311981804,1705529434137,-504.48596087,0.00021917,2]
[311981805,1705529434147,-476.18,0.00021917,2]
[311981806,1705529434156,-500.0,0.00021917,2]
[311981807,1705529434166,-500.0,0.00021917,2]
[311981808,1705529434175,-500.0,0.00021917,2]
[311981809,1705529434185,-500.0,0.00021917,2]
[311981810,1705529434194,-500.0,0.00021917,2]
[311981811,1705529434203,-509.45021266,0.00021917,2]
[311981812,1705529434212,-500.0,0.00021917,2]
[311981813,1705529434221,-500.0,0.00021917,2]
[311981814,1705529434230,-500.0,0.00021917,2]
[311981815,1705529434240,-500.0,0.00021917,2]
[311981816,1705529434249,-500.0,0.00021917,2]
[311981817,1705529434259,-500.0,0.00021917,2]
[311981818,1705529434268,-500.0,0.00021917,2]
[311981819,1705529434278,-500.0,0.00021917,2]
[311981820,1705529434287,-500.0,0.00021917,2]
[311981821,1705529434296,-500.0,0.00021917,2]
[311981822,1705529434305,-500.0,0.00021917,2]
[311981823,1705529434314,-500.0,0.00021917,2]
[311981824,1705529434323,-500.0,0.00021917,2]
[311981825,1705529434333,-500.0,0.00021917,2]
[311981826,1705529434342,-500.0,0.00021917,2]
[311981827,1705529434351,-500.0,0.00021917,2]
[311981828,1705529434360,-500.0,0.00021917,2]
[311981829,1705529434369,-500.0,0.00021917,2]
[311981830,1705529434378,-500.0,0.00021917,2]
[311981831,1705529434387,-500.0,0.00021917,2]
[311981832,1705529434397,-500.0,0.00021917,2]
[311981833,1705529434410,-500.0,0.00021917,2]
[311981834,1705529434419,-500.0,0.00021917,2]
[311981835,1705529434428,-500.0,0.00021917,2]
[311981836,1705529434438,-500.0,0.00021917,2]
[311981837,1705529434447,-449.42854464,0.00021917,2]
[311981838,1705529434457,-500.0,0.00021917,2]
[311981839,1705529434467,-500.0,0.00021917,2]
[311981840,1705529434476,-500.0,0.00021917,2]
[311981841,1705529434485,-500.0,0.00021917,2]
[311981842,1705529434495,-500.0,0.00021917,2]
[311981843,1705529434505,-500.0,0.00021917,2]
[311981844,1705529434514,-500.0,0.00021917,2]
[311981845,1705529434523,-500.0,0.00021917,2]
[311981846,1705529434532,-500.0,0.00021917,2]
[311981847,1705529434541,-462.49028069,0.00021917,2]
[311981848,1705529434550,-500.0,0.00021917,2]
[311981849,1705529434560,-500.0,0.00021917,2]
[311981850,1705529434570,-500.0,0.00021917,2]
[311981851,1705529434580,-500.0,0.00021917,2]
[311981852,1705529434589,-500.0,0.00021917,2]
[311981853,1705529434598,-500.0,0.00021917,2]
[311981854,1705529434607,-500.0,0.00021917,2]
[311981855,1705529434617,-500.0,0.00021917,2]
[311981856,1705529434626,-500.0,0.00021917,2]
[311981857,1705529434636,-500.0,0.00021917,2]
[311981858,1705529434645,-500.0,0.00021917,2]
[311981859,1705529434655,-500.0,0.00021917,2]
[311981860,1705529434664,-500.0,0.00021917,2]
[311981861,1705529434673,-500.0,0.00021917,2]
[311981862,1705529434683,-500.0,0.00021917,2]
[311981863,1705529434693,-500.0,0.00021917,2]
[311981864,1705529434703,-500.0,0.00021917,2]
[311981865,1705529434712,-500.0,0.00021917,2]
[311981866,1705529434721,-500.0,0.00021917,2]
[311981867,1705529434731,-150.18853159,0.00021917,2]
[311981868,1705529434742,-500.0,0.00021917,2]
[311981869,1705529434751,-500.0,0.00021917,2]
[311981870,1705529434760,-500.0,0.00021917,2]
[311981871,1705529434770,-500.0,0.00021917,2]
[311981872,1705529434780,-500.0,0.00021917,2]
[311981873,1705529434789,-500.0,0.00021917,2]
[311981874,1705529434798,-237.91,0.00021917,2]
[311981875,1705529434808,-500.0,0.00021917,2]
[311981876,1705529434817,-500.0,0.00021917,2]
[311981877,1705529434826,-500.0,0.00021917,2]
[311981878,1705529434835,-543.36576626,0.00021917,2]
[311981879,1705529434845,-500.0,0.00021917,2]
[311981880,1705529434854,-506.93387347,0.00021917,2]
[311981881,1705529434863,-500.0,0.00021917,2]
[311981882,1705529434872,-500.0,0.00021917,2]
[311981883,1705529434881,-500.0,0.00021917,2]
[311981884,1705529434890,-500.0,0.00021917,2]
[311981885,1705529434899,-500.0,0.00021917,2]
[311981886,1705529434909,-371.38,0.00021917,2]
[311981887,1705529434918,-500.0,0.00021917,2]
[311981888,1705529434927,-514.28192894,0.00021917,2]
[311981889,1705529434936,-500.0,0.00021917,2]
[311981890,1705529434946,-167.43,0.00021917,2]
[311981891,1705529434957,-500.0,0.00021917,2]
[311981892,1705529434966,-500.0,0.00021917,2]
[311981893,1705529434975,-500.0,0.00021917,2]
[311981894,1705529434984,-500.0,0.00021917,2]
[311981895,1705529434994,-500.0,0.00021917,2]
[311981896,1705529435003,-500.0,0.00021917,2]
[311981897,1705529435013,-500.0,0.00021917,2]
[311981898,1705529435022,-500.0,0.00021917,2]
[311981899,1705529435033,-500.0,0.00021917,2]
[311981900,1705529435042,-500.0,0.00021917,2]
[311981901,1705529435051,-500.0,0.00021917,2]
[311981902,1705529435060,-495.12694029,0.00021917,2]
[311981903,1705529435070,-500.0,0.00021917,2]
[311981904,1705529435079,-500.0,0.00021917,2]
[311981905,1705529435088,-1536.13,0.00021917,2]
[311981906,1705529435098,-500.0,0.00021917,2]
[311981907,1705529435107,-500.0,0.00021917,2]
[311981908,1705529435116,-478.87893244,0.00021917,2]
[311981909,1705529435126,-500.0,0.00021917,2]
[311981910,1705529435136,-500.0,0.00021917,2]
[311981911,1705529435145,-500.00000001,0.00021917,2]
[311981912,1705529435155,-520.51766552,0.00021917,2]
[311981913,1705529435163,-500.0,0.00021917,2]
[311981914,1705529435173,-500.0,0.00021917,2]
[311981915,1705529435182,-418.84158485,0.00021917,2]
[311981916,1705529435191,-500.0,0.00021917,2]
[311981917,1705529435201,-500.0,0.00021917,2]
[311981918,1705529435211,-500.0,0.00021917,2]
[311981919,1705529435220,-500.0,0.00021917,2]
[311981920,1705529435229,-500.0,0.00021917,2]
[311981921,1705529435238,-500.0,0.00021917,2]
[311981922,1705529435248,-500.0,0.00021917,2]
[311981923,1705529435257,-500.0,0.00021917,2]
[311981924,1705529435267,-500.0,0.00021917,2]
[311981925,1705529435276,-444.33,0.00021917,2]
[311981926,1705529435285,-500.0,0.00021917,2]
[311981927,1705529435295,-500.0,0.00021917,2]
[311981928,1705529435305,-500.0,0.00021917,2]
[311981929,1705529435315,-500.0,0.00021917,2]
[311981930,1705529435324,-500.0,0.00021917,2]
[311981931,1705529435334,-500.0,0.00021917,2]
[311981932,1705529435344,-500.0,0.00021917,2]
[311981933,1705529435353,-503.06,0.00021917,2]
[311981934,1705529435363,-500.0,0.00021917,2]
[311981935,1705529435372,-474.13575304,0.00021917,2]
[311981936,1705529435381,-500.0,0.00021917,2]
[311981937,1705529435391,-500.0,0.00021917,2]
[311981938,1705529435400,-500.0,0.00021917,2]
[311981939,1705529435410,-500.0,0.00021917,2]
[311981940,1705529435419,-500.0,0.00021917,2]
[311981941,1705529435429,-500.0,0.00021917,2]
[311981942,1705529435438,-500.0,0.00021917,2]
[311981943,1705529435447,-500.0,0.00021917,2]
[311981944,1705529435457,-500.0,0.00021917,2]
[311981945,1705529435466,-500.0,0.00021917,2]
[311981946,1705529435476,-500.0,0.00021917,2]
[311981947,1705529435486,-500.0,0.00021917,2]
[311981948,1705529435499,-500.0,0.00021917,7]
[311981949,1705529435509,-500.0,0.00021917,2]
[311981950,1705529435519,-500.0,0.00021917,2]
[311981951,1705529435529,-500.0,0.00021917,2]
[311981952,1705529435539,-500.0,0.00021917,2]
[311981953,1705529435549,-500.0,0.00021917,2]
[311981954,1705529435559,-500.0,0.00021917,2]
[311981955,1705529435570,-500.0,0.00021917,2]
[311981956,1705529435579,-500.0,0.00021917,2]
[311981957,1705529435590,-500.0,0.00021917,2]
[311981958,1705529435599,-500.0,0.00021917,2]
[311981959,1705529435609,-500.0,0.00021917,2]
[311981960,1705529435618,-500.0,0.00021917,2]
[311981961,1705529435629,-500.0,0.00021917,2]
[311981962,1705529435639,-500.0,0.00021917,2]
[311981963,1705529435648,-500.0,0.00021917,2]
[311981964,1705529435658,-500.0,0.00021917,2]
[311981965,1705529435667,-500.0,0.00021917,2]
[311981966,1705529435677,-500.0,0.00021917,2]
[311981967,1705529435687,-500.0,0.00021917,2]
[311981968,1705529435696,-500.0,0.00021917,2]
[311981969,1705529435706,-500.0,0.00021917,2]
[311981970,1705529435715,-500.0,0.00021917,2]
[311981971,1705529435724,-500.0,0.00021917,2]
[311981972,1705529435735,-261.22140395,0.00021917,2]
[311981973,1705529435748,-500.0,0.00021917,2]
[311981974,1705529435758,-500.0,0.00021917,2]
[311981975,1705529435768,-500.0,0.00021917,2]
[311981976,1705529435778,-500.0,0.00021917,2]
[311981977,1705529435787,-529.22711135,0.00021917,2]
[311981978,1705529435796,-500.0,0.00021917,2]
[311981979,1705529435806,-563.13,0.00021917,2]
[311981980,1705529435815,-500.0,0.00021917,2]